fUST/lending_fUST_20250110
["ID","MTS","AMOUNT","RATE_DAILY","PERIOD"]
[348321609,1736445036488,-1218.58,0.00020245,3]
[348321611,1736445036498,-500.0,0.00020245,3]
[348321613,1736445036508,-1647.26,0.00020248,3]
[348321615,1736445036518,-895.1834869,0.00020349,2]
[348321617,1736445036529,-586.29674073,0.00020401,2]
[348321619,1736445036540,-166.872931,0.00020447,2]
[348321621,1736445036549,-500.0,0.00020516,3]
[348321623,1736445036558,-500.0,0.00020517,3]
[348321625,1736445036568,-500.0,0.00020517,3]
[348321627,1736445036577,-500.0,0.00020517,3]
[348321630,1736445036587,-500.0,0.00020517,3]
[348321632,1736445036597,-500.0,0.00020517,3]
[348321633,1736445036607,-500.0,0.00020517,3]
[348321635,1736445036617,-539.46,0.00020517,2]
[348321637,1736445036626,-365.36,0.00020517,3]
[348321639,1736445036636,-445.5,0.00020517,3]
[348321641,1736445036645,-959.07,0.00020517,3]
[348321643,1736445036655,-266.78,0.00020517,3]
[348321646,1736445036665,-1086.76,0.00020517,3]
[348321647,1736445036675,-151.0,0.00020517,2]
[348321649,1736445036684,-500.0,0.00020517,3]
[348321652,1736445036694,-6483.41,0.00020517,3]
[348321654,1736445036703,-600.12,0.00020517,3]
[348321656,1736445036713,-488.49044384,0.00020517,3]
[348321657,1736445036723,-500.0,0.00020517,3]
[348321659,1736445036732,-500.0,0.00020518,3]
[348321661,1736445036741,-530.77,0.00020518,3]
[348321664,1736445036751,-439.65,0.00020518,3]
[348321665,1736445036761,-1292.46,0.00020519,3]
[348321668,1736445036771,-899.96,0.00020519,3]
[348321669,1736445036782,-500.0,0.00020519,3]
[348321672,1736445036792,-1218.58,0.00020519,3]
[348321674,1736445036802,-1647.26,0.00020522,3]
[348321675,1736445036812,-500.0,0.00020547,3]
[348321678,1736445036821,-500.0,0.00020547,3]
[348321680,1736445036831,-500.0,0.00020547,3]
[348321682,1736445036841,-153.0,0.00020603,2]
[348321684,1736445036850,-500.0,0.0002079,3]
[348321686,1736445036859,-443.19,0.00020791,3]
[348321687,1736445036868,-500.0,0.00020791,3]
[348321689,1736445036878,-500.0,0.00020791,3]
[348321691,1736445036888,-436.81,0.00020791,3]
[348321693,1736445036897,-500.0,0.00020791,3]
[348321695,1736445036907,-500.0,0.00020791,3]
[348321697,1736445036916,-539.46,0.00020791,2]
[348321699,1736445036926,-959.07,0.00020791,3]
[348321701,1736445036936,-1086.76,0.00020791,3]
[348321703,1736445036945,-500.0,0.00020791,3]
[348321705,1736445036955,-6483.41,0.00020791,3]
[348321707,1736445036964,-500.0,0.00020791,3]
[348321709,1736445036973,-177.16,0.00020792,3]
[348321711,1736445036983,-500.0,0.00020792,3]
[348321713,1736445036993,-503.15664519,0.00020792,3]
[348321715,1736445037003,-500.0,0.00020792,3]
[348321717,1736445037012,-1292.46,0.00020793,3]
[348321719,1736445037021,-899.96,0.00020793,3]
[348321721,1736445037032,-316.59,0.00020793,3]
[348321723,1736445037042,-1218.58,0.00020793,3]
[348321726,1736445037051,-1647.26,0.00020796,3]
[348321728,1736445037061,-151.0,0.00020796,2]
[348321730,1736445037071,-151.0,0.00020796,2]
[348321732,1736445037080,-895.1834869,0.0002083,2]
[348321734,1736445037089,-690.086,0.000209,2]
[348321736,1736445037099,-1000.0,0.00021,21]
[348321738,1736445037108,-1000.0,0.00021,4]
[348321740,1736445037118,-500.0,0.00021064,3]
[348321742,1736445037127,-151.0,0.00021065,2]
[348321744,1736445037136,-151.0,0.00021065,2]
[348321746,1736445037145,-500.0,0.00021065,3]
[348321748,1736445037155,-500.0,0.00021065,3]
[348321750,1736445037164,-500.0,0.00021065,3]
[348321752,1736445037174,-500.0,0.00021065,3]
[348321754,1736445037184,-539.46,0.00021065,2]
[348321756,1736445037193,-959.07,0.00021065,3]
[348321758,1736445037203,-1086.76,0.00021065,3]
[348321760,1736445037212,-151.0,0.00021065,2]
[348321762,1736445037221,-500.0,0.00021065,3]
[348321764,1736445037230,-6483.41,0.00021065,3]
[348321765,1736445037239,-500.0,0.00021065,3]
[348321768,1736445037249,-239.00546234,0.00021066,3]
[348321770,1736445037259,-1292.46,0.00021067,3]
[348321771,1736445037268,-899.96,0.00021067,3]
[348321773,1736445037279,-1218.58,0.00021067,3]
[348321775,1736445037289,-1647.26,0.0002107,3]
[348321777,1736445037298,-232.691,0.00021297,2]
[348321779,1736445037308,-1401.58450519,0.000213,2]
[348321781,1736445037317,-895.1834869,0.0002131,2]
[348321784,1736445037327,-3000.0,0.0002131,2]
[348321785,1736445037336,-3000.0,0.0002132,2]
[348321788,1736445037346,-3000.0,0.0002133,2]
[348321790,1736445037356,-500.0,0.00021338,3]
[348321792,1736445037366,-500.0,0.00021339,3]
[348321793,1736445037376,-500.0,0.00021339,3]
[348321796,1736445037386,-500.0,0.00021339,3]
[348321798,1736445037394,-500.0,0.00021339,3]
[348321800,1736445037404,-539.46,0.00021339,2]
[348321801,1736445037414,-959.07,0.00021339,3]
[348321803,1736445037424,-1086.76,0.00021339,3]
[348321805,1736445037433,-500.0,0.00021339,3]
[348321807,1736445037443,-6483.41,0.00021339,3]
[348321809,1736445037452,-500.0,0.00021339,3]
[348321811,1736445037463,-3000.0,0.0002134,2]
[348321814,1736445037473,-1292.46,0.00021341,3]
[348321816,1736445037483,-899.96,0.00021341,3]
[348321818,1736445037492,-1218.58,0.00021341,3]
[348321820,1736445037502,-1647.26,0.00021344,3]
[348321822,1736445037512,-151.0,0.00021346,2]
[348321824,1736445037523,-155.307808,0.00021346,2]
[348321825,1736445037533,-151.0,0.00021346,2]
[348321827,1736445037543,-4152.277243,0.0002135,2]
[348321830,1736445037553,-207.707116,0.0002135,2]
[348321832,1736445037563,-41854.39972972,0.000215,2]
[348321835,1736445037573,-4678.0,0.000216,4]
[348321837,1736445037582,-500.0,0.00021612,3]
[348321839,1736445037591,-500.0,0.00021613,3]
[348321842,1736445037601,-500.0,0.00021613,3]
[348321844,1736445037611,-500.0,0.00021613,3]
[348321847,1736445037621,-500.0,0.00021613,3]
[348321851,1736445037630,-539.46,0.00021613,2]
[348321854,1736445037640,-959.07,0.00021613,3]
[348321857,1736445037650,-1086.76,0.00021613,3]
[348321859,1736445037659,-500.0,0.00021613,3]
[348321861,1736445037669,-5669.30750686,0.00021613,3]
[348321866,1736445037714,-814.10249314,0.00021613,3]
[348321868,1736445037723,-151.0,0.00021614,2]
[348321870,1736445037733,-151.0,0.00021615,2]
[348321872,1736445037743,-151.0,0.00021615,2]
[348321874,1736445037753,-1292.46,0.00021615,3]
[348321876,1736445037763,-899.96,0.00021615,3]
[348321878,1736445037774,-728.69886065,0.00021615,3]
[348321881,1736445037786,-489.88113935,0.00021615,3]
[348321883,1736445037795,-986.51886064,0.00021618,3]
[348321885,1736445037807,-660.74113936,0.00021618,3]
[348321887,1736445037817,-420.0,0.00021744,2]
[348321889,1736445037826,-1896.25886064,0.00021787,3]
[348321892,1736445037844,-500.0,0.00021613,3]
[348321894,1736445037853,-30773.1934218,0.00021787,3]
[348321896,1736445037863,-895.1834869,0.0002179,2]
[348321898,1736445037872,-500.0,0.00021886,3]
[348321900,1736445037883,-500.0,0.00021887,3]
[348321902,1736445037892,-500.0,0.00021887,3]
[348321904,1736445037902,-214.28,0.00021887,3]
[348321906,1736445037911,-500.0,0.00021887,3]
[348321907,1736445037921,-539.46,0.00021887,2]
[348321909,1736445037932,-959.07,0.00021887,3]
[348321910,1736445037942,-1086.76,0.00021887,3]
[348321912,1736445037952,-500.0,0.00021887,3]
[348321914,1736445037961,-6483.41,0.00021887,3]
[348321916,1736445037972,-1292.46,0.00021889,3]
[348321918,1736445037982,-899.96,0.00021889,3]
[348321921,1736445037993,-1218.58,0.00021889,3]
[348321922,1736445038003,-1647.26,0.00021892,3]
[348321925,1736445038013,-198.36019122,0.00021999,2]
[348321926,1736445038024,-37037.53411276,0.00022,2]
[348321939,1736445038137,-173.0802733,0.00018659,2]
[348321941,1736445038146,-500.0,0.00021887,3]
[348321943,1736445038156,-2928.54846833,0.00022,2]
[348321945,1736445038165,-401.3919972,0.00022,3]
[348321947,1736445038175,-7256.09537405,0.00022,2]
[348321949,1736445038184,-344.63963,0.00022,2]
[348321951,1736445038194,-905.2,0.00022,2]
[348321953,1736445038204,-1000.0,0.00022,2]
[348321955,1736445038213,-151.0,0.00022,7]
[348321957,1736445038223,-151.0,0.00022,7]
[348321959,1736445038232,-151.0,0.00022,7]
[348321961,1736445038242,-151.0,0.00022,7]
[348321971,1736445038329,-151.0,0.00022,7]
[348321974,1736445038340,-151.0,0.00022,7]
[348321977,1736445038350,-695.95885179,0.00022,22]
[348321980,1736445038363,-304.04114821,0.00022,22]
[348321982,1736445038372,-2000.0,0.00022,3]
[348321984,1736445038381,-1000.0,0.00022,5]
[348321986,1736445038391,-500.0,0.0002216,3]
[348321987,1736445038401,-500.0,0.00022161,3]
[348321988,1736445038410,-500.0,0.00022161,3]
[348321989,1736445038419,-500.0,0.00022161,3]
[348321990,1736445038428,-539.46,0.00022161,2]
[348321991,1736445038438,-959.07,0.00022161,3]
[348321992,1736445038450,-1086.76,0.00022161,3]
[348321993,1736445038459,-500.0,0.00022161,3]
[348321994,1736445038468,-6483.41,0.00022161,3]
[348321995,1736445038476,-500.0,0.00022161,3]
[348321996,1736445038487,-1292.46,0.00022163,3]
[348321997,1736445038496,-899.96,0.00022163,3]
[348321998,1736445038505,-1647.26,0.00022166,3]
[348321999,1736445038514,-151.0,0.00022249,7]
[348322000,1736445038524,-895.1834869,0.0002227,2]
[348322001,1736445038533,-167.0,0.00022393,2]
[348322002,1736445038544,-167.0,0.00022393,2]
[348322003,1736445038553,-151.0,0.00022393,2]
[348322004,1736445038562,-151.0,0.00022393,2]
[348322005,1736445038572,-151.0,0.00022393,2]
[348322006,1736445038582,-151.0,0.00022393,2]
[348322007,1736445038591,-151.0,0.00022393,2]
[348322009,1736445038601,-151.0,0.00022393,2]
[348322011,1736445038610,-151.0,0.00022393,2]
[348322013,1736445038619,-151.0,0.00022393,2]
[348322015,1736445038629,-151.0,0.00022393,2]
[348322017,1736445038638,-151.0,0.00022393,2]
[348322019,1736445038647,-151.0,0.00022393,2]
[348322021,1736445038658,-151.0,0.00022393,2]
[348322023,1736445038667,-151.0,0.00022393,2]
[348322025,1736445038677,-151.0,0.00022393,2]
[348322027,1736445038686,-151.0,0.00022393,2]
[348322029,1736445038695,-151.0,0.00022393,2]
[348322030,1736445038704,-151.0,0.00022393,2]
[348322032,1736445038714,-151.0,0.00022393,2]
[348322034,1736445038724,-151.0,0.00022393,2]
[348322037,1736445038734,-151.0,0.00022393,2]
[348322039,1736445038744,-282.0,0.00022393,2]
[348322041,1736445038753,-151.0,0.00022395,2]
[348322042,1736445038762,-151.0,0.00022395,2]
[348322044,1736445038774,-151.0,0.00022395,2]
[348322046,1736445038784,-151.0,0.00022395,2]
[348322049,1736445038793,-151.0,0.00022395,2]
[348322051,1736445038803,-151.0,0.00022395,2]
[348322052,1736445038812,-151.0,0.00022395,2]
[348322054,1736445038821,-181.19,0.00022395,2]
[348322057,1736445038831,-500.0,0.00022434,3]
[348322059,1736445038841,-382.65250604,0.00022435,3]
[348322060,1736445038850,-263.31,0.00022435,3]
[348322062,1736445038860,-500.0,0.00022435,3]
[348322064,1736445038870,-539.46,0.00022435,2]
[348322066,1736445038879,-959.07,0.00022435,3]
[348322069,1736445038889,-1086.76,0.00022435,3]
[348322071,1736445038899,-500.0,0.00022435,3]
[348322072,1736445038908,-6483.41,0.00022435,3]
[348322074,1736445038918,-500.0,0.00022435,3]
[348322076,1736445038927,-1292.46,0.00022437,3]
[348322078,1736445038938,-899.96,0.00022437,3]
[348322081,1736445038948,-151.0,0.00022438,7]
[348322082,1736445038957,-151.0,0.00022438,7]
[348322085,1736445038967,-1647.26,0.0002244,3]
[348322086,1736445038977,-151.0,0.00022442,7]
[348322088,1736445038986,-151.0,0.00022442,7]
[348322090,1736445038995,-2679.46546658,0.000225,2]
[348322092,1736445039005,-8880.978472,0.000226,3]
[348322098,1736445039054,-24076.81958995,0.000226,3]
[348322100,1736445039064,-4201.09768898,0.000226,2]
[348322103,1736445039075,-7362.62231102,0.000226,2]
[348322105,1736445039084,-151.0,0.000226,7]
[348322107,1736445039094,-151.0,0.000226,7]
[348322109,1736445039104,-151.0,0.000226,7]
[348322111,1736445039113,-151.0,0.000226,7]
[348322113,1736445039123,-151.0,0.000226,7]
[348322115,1736445039132,-151.0,0.000226,7]
[348322117,1736445039142,-151.0,0.000226,7]
[348322119,1736445039152,-160.0,0.00022634,3]
[348322121,1736445039161,-151.0,0.00022641,7]
[348322123,1736445039170,-500.0,0.00022708,3]
[348322125,1736445039179,-500.0,0.00022709,3]
[348322127,1736445039188,-539.46,0.00022709,2]
[348322129,1736445039198,-959.07,0.00022709,3]
[348322131,1736445039207,-1086.76,0.00022709,3]
[348322133,1736445039216,-500.0,0.00022709,3]
[348322135,1736445039225,-5934.14505433,0.00022709,3]
[348322138,1736445039243,-151.0,0.00020517,2]
[348322140,1736445039253,-549.26494567,0.00022709,3]
[348322142,1736445039262,-601.88447161,0.00022709,3]
[348322144,1736445039274,-1292.46,0.00022711,3]
[348322146,1736445039283,-899.96,0.00022711,3]
[348322148,1736445039293,-1647.26,0.00022714,3]
[348322150,1736445039302,-895.1834869,0.00022751,2]
[348322152,1736445039311,-150.0,0.00022775,2]
[348322154,1736445039321,-2076.0,0.00022775,2]
[348322156,1736445039330,-535.0,0.00022775,2]
[348322158,1736445039340,-2317.0,0.00022775,2]
[348322160,1736445039350,-619.0,0.000228,2]
[348322162,1736445039360,-151.0,0.00022885,7]
[348322164,1736445039369,-162.851738,0.00022885,7]
[348322166,1736445039378,-151.0,0.00022885,7]
[348322168,1736445039388,-151.0,0.00022885,7]
[348322170,1736445039399,-204.207532,0.00022885,7]
[348322172,1736445039408,-169.269288,0.00022885,7]
[348322174,1736445039417,-1719.9999978,0.00022898,2]
[348322176,1736445039427,-557.25727396,0.000229,2]
[348322178,1736445039437,-500.0,0.00022982,3]
[348322180,1736445039446,-500.0,0.00022983,3]
[348322182,1736445039456,-539.46,0.00022983,2]
[348322183,1736445039468,-959.07,0.00022983,3]
[348322185,1736445039478,-1086.76,0.00022983,3]
[348322187,1736445039487,-500.0,0.00022983,3]
[348322189,1736445039497,-6483.41,0.00022983,3]
[348322191,1736445039507,-151.0,0.00022984,7]
[348322193,1736445039517,-151.0,0.00022984,7]
[348322195,1736445039530,-1292.46,0.00022985,3]
[348322197,1736445039540,-899.96,0.00022985,3]
[348322199,1736445039550,-1647.26,0.00022988,3]
[348322201,1736445039560,-1054.26869144,0.00022989,28]
[348322203,1736445039570,-160.96411864,0.00022999,2]
[348322205,1736445039580,-1496.90722167,0.00023,2]
[348322207,1736445039590,-4269.33,0.00023,14]
[348322209,1736445039599,-59195.177536,0.00023,2]
[348322210,1736445039609,-151.0,0.00023,7]
[348322212,1736445039619,-499.999999,0.00023,2]
[348322214,1736445039629,-151.0,0.00023,7]
[348322216,1736445039638,-151.0,0.00023,7]
[348322218,1736445039648,-151.0,0.00023,7]
[348322220,1736445039658,-1000.0,0.00023,23]
[348322222,1736445039667,-1000.0,0.00023,6]
[348322224,1736445039676,-205.0,0.00023,2]
[348322226,1736445039686,-315.97686509,0.00023,2]
[348322228,1736445039696,-151.0,0.00023004,7]
[348322231,1736445039706,-597.31885819,0.00023018,2]
[348322233,1736445039715,-151.0,0.00023033,7]
[348322235,1736445039725,-20646.00584876,0.00023079,2]
[348322237,1736445039735,-1000.0,0.00023083,2]
[348322239,1736445039744,-1000.0,0.00023098,2]
[348322241,1736445039754,-151.0,0.000231,10]
[348322243,1736445039763,-6114.67994919,0.00023131,7]
[348322245,1736445039776,-1000.0,0.00023143,2]
[348322247,1736445039785,-983.84,0.000232,2]
[348322249,1736445039795,-189.3,0.00023204,2]
[348322251,1736445039804,-170.0,0.00023204,2]
[348322253,1736445039813,-170.0,0.00023204,2]
[348322255,1736445039823,-170.0,0.00023204,2]
[348322257,1736445039831,-1000.0,0.00023215,2]
[348322259,1736445039842,-168.0,0.00023216,2]
[348322260,1736445039851,-1000.0,0.00023227,2]
[348322262,1736445039861,-262.42677482,0.0002323,7]
[348322265,1736445039871,-262.42677482,0.0002323,7]
[348322266,1736445039880,-262.42677482,0.0002323,7]
[348322268,1736445039890,-262.42677482,0.0002323,7]
[348322270,1736445039900,-262.42677482,0.0002323,7]
[348322272,1736445039910,-262.42677482,0.0002323,7]
[348322274,1736445039919,-262.42677482,0.0002323,7]
[348322276,1736445039929,-262.42677482,0.0002323,7]
[348322278,1736445039940,-262.42677482,0.0002323,7]
[348322280,1736445039951,-262.42677482,0.0002323,7]
[348322282,1736445039961,-262.42677482,0.0002323,7]
[348322284,1736445039971,-262.42677482,0.0002323,7]
[348322286,1736445039980,-262.42677482,0.0002323,7]
[348322288,1736445039990,-262.42677482,0.0002323,7]
[348322290,1736445039999,-262.42677482,0.0002323,7]
[348322292,1736445040010,-262.42677482,0.0002323,7]
[348322294,1736445040019,-262.42677482,0.0002323,7]
[348322296,1736445040030,-262.42677482,0.0002323,7]
[348322298,1736445040040,-262.42677482,0.0002323,7]
[348322300,1736445040049,-262.42,0.0002323,7]
[348322302,1736445040059,-393.64016223,0.0002323,7]
[348322304,1736445040069,-393.64016223,0.0002323,7]
[348322306,1736445040079,-393.64016223,0.0002323,7]
[348322308,1736445040089,-393.64016223,0.0002323,7]
[348322310,1736445040100,-393.64016223,0.0002323,7]
[348322312,1736445040109,-393.64016223,0.0002323,7]
[348322314,1736445040118,-393.64016223,0.0002323,7]
[348322316,1736445040127,-393.64016223,0.0002323,7]
[348322318,1736445040136,-393.64016223,0.0002323,7]
[348322320,1736445040146,-393.64016223,0.0002323,7]
[348322322,1736445040155,-393.64016223,0.0002323,7]
[348322324,1736445040164,-393.64016223,0.0002323,7]
[348322326,1736445040173,-393.64016223,0.0002323,7]
[348322328,1736445040182,-393.64016223,0.0002323,7]
[348322330,1736445040191,-393.64016223,0.0002323,7]
[348322332,1736445040201,-393.64016223,0.0002323,7]
[348322334,1736445040210,-393.64016223,0.0002323,7]
[348322336,1736445040220,-393.64016223,0.0002323,7]
[348322338,1736445040231,-393.64016223,0.0002323,7]
[348322340,1736445040241,-393.64,0.0002323,7]
[348322342,1736445040250,-20823.77206635,0.00023231,2]
[348322344,1736445040259,-895.1834869,0.00023231,2]
[348322346,1736445040269,-151.0,0.00023235,7]
[348322348,1736445040283,-151.0,0.00023235,7]
[348322350,1736445040292,-500.0,0.00023256,3]
[348322352,1736445040301,-500.0,0.00023257,3]
[348322354,1736445040310,-539.46,0.00023257,2]
[348322356,1736445040319,-959.07,0.00023257,3]
[348322358,1736445040328,-1086.76,0.00023257,3]
[348322360,1736445040338,-500.0,0.00023257,3]
[348322362,1736445040348,-6483.41,0.00023257,3]
[348322364,1736445040357,-1292.46,0.00023259,3]
[348322366,1736445040367,-899.96,0.00023259,3]
[348322368,1736445040376,-1647.26,0.00023262,3]
[348322369,1736445040385,-1000.0,0.00023281,2]
[348322371,1736445040395,-2000.0,0.000233,2]
[348322373,1736445040404,-2000.0,0.000233,2]
[348322375,1736445040413,-2000.0,0.000233,2]
[348322377,1736445040422,-153.48,0.000233,31]
[348322379,1736445040431,-153.48,0.000233,31]
[348322381,1736445040440,-153.48,0.000233,31]
[348322383,1736445040452,-153.48,0.000233,31]
[348322385,1736445040462,-153.48,0.000233,31]
[348322387,1736445040471,-153.48,0.000233,31]
[348322389,1736445040480,-153.48,0.000233,31]
[348322391,1736445040490,-928.415,0.000233,2]
[348322393,1736445040500,-500.0,0.00023312,9]
[348322395,1736445040510,-500.0,0.00023322,10]
[348322397,1736445040519,-150.21,0.00023322,10]
[348322399,1736445040533,-150.21,0.00023322,2]
[348322401,1736445040543,-150.21,0.00023322,10]
[348322403,1736445040553,-150.26,0.00023322,10]
[348322405,1736445040562,-500.0,0.00023322,10]
[348322407,1736445040572,-500.0,0.00023322,10]
[348322419,1736445040661,-150.21,0.00023322,2]
[348322421,1736445040671,-150.21,0.00023322,10]
[348322423,1736445040681,-150.21,0.00023322,10]
[348322424,1736445040690,-4678.0,0.00023328,7]
[348322426,1736445040699,-151.0,0.00023328,7]
[348322428,1736445040708,-151.0,0.00023328,7]
[348322430,1736445040717,-151.0,0.00023328,7]
[348322432,1736445040726,-151.0,0.00023328,7]
[348322434,1736445040735,-151.0,0.00023328,7]
[348322436,1736445040745,-151.0,0.00023328,7]
[348322438,1736445040754,-151.0,0.00023328,7]
[348322440,1736445040763,-151.0,0.00023328,7]
[348322442,1736445040773,-151.0,0.00023328,7]
[348322444,1736445040785,-151.0,0.00023328,7]
[348322446,1736445040794,-151.0,0.00023328,7]
[348322448,1736445040803,-151.0,0.00023328,7]
[348322450,1736445040812,-254.646649,0.00023328,7]
[348322452,1736445040822,-204.099569,0.00023328,7]
[348322454,1736445040832,-2567.57291746,0.00023328,2]
[348322456,1736445040841,-152.900636,0.0002333,7]
[348322458,1736445040850,-151.0,0.0002333,7]
[348322460,1736445040859,-151.0,0.0002333,7]
[348322462,1736445040870,-151.0,0.0002333,7]
[348322464,1736445040879,-257090.13150514,0.00023331,10]
[348322467,1736445040893,-2692.61228344,0.00023331,10]
[348322469,1736445040904,-2501.10000171,0.00023331,10]
[348322707,1736445043188,-250.71379502,0.00019971,3]
[348322710,1736445043211,-743.47620498,0.00019971,3]
[348322712,1736445043220,-392.90702623,0.00020245,3]
[348323077,1736445047016,-601.28297377,0.00020245,3]
[348323079,1736445047025,-612.06702623,0.00020519,3]
[348323081,1736445047039,-382.12297377,0.00020519,3]
[348323083,1736445047049,-994.19,0.00020793,3]
[348323085,1736445047058,-197.909898,0.00020796,2]
[348323087,1736445047068,-994.19,0.00021067,3]
[348323089,1736445047077,-994.19,0.00021341,3]
[348323091,1736445047087,-205.0,0.00022,2]
[348323093,1736445047096,-150.0,0.00023,2]
[348323095,1736445047105,-831.211228,0.000232,2]
[348323097,1736445047114,-885.46,0.000232,2]
[348323099,1736445047124,-1894.70918766,0.00023331,10]
[348325934,1736445664276,169.269875,0.00013973,2]
[348325935,1736445854403,771.58921906,0.00025,120]
[348325936,1736445938108,-267.3461749,0.00018965,2]
[348325937,1736445938128,-302.9394212,0.00019,2]
[348325938,1736445938149,-616.64602755,0.00019568,2]
[348325939,1736445938172,-417.1539234,0.0001985,2]
[348325940,1736445938192,-185.43329444,0.00019853,2]
[348325941,1736445938212,-472.99338026,0.00019868,2]
[348325942,1736445938234,-163.72,0.00019868,2]
[348325943,1736445938255,-526.47326672,0.00019946,2]
[348325947,1736446028144,-307.62820861,0.00019847,2]
[348325949,1736446034088,-39.90224182,0.00019847,2]
[348325950,1736446034111,-347.53045043,0.00019858,2]
[348325951,1736446034134,-275.54872894,0.00019868,2]
[348325952,1736446035110,-71.98172149,0.00019868,2]
[348325953,1736446035134,-300.0,0.00019943,2]
[348325954,1736446035155,-847.23210725,0.00019943,2]
[348325955,1736446037101,-495.02607157,0.00019943,2]
[348325956,1736446039081,-3776.90985815,0.00019943,2]
[348325958,1736446156093,-38571.82,0.0001994,2]
[348326363,1736446236793,-389.89568935,0.000189,2]
[348326367,1736446236829,-191.68320674,0.000189,2]
[348326369,1736446236840,-300.0,0.00019939,2]
[348326371,1736446236850,-21507.0,0.00019939,2]
[348326373,1736446236860,-270.0,0.0001994,2]
[348326375,1736446236870,-500.0,0.0001994,2]
[348326378,1736446236880,-500.0,0.0001994,2]
[348326380,1736446236890,-500.0,0.0001994,2]
[348326381,1736446236899,-500.0,0.0001994,2]
[348326384,1736446236909,-500.0,0.0001994,2]
[348326385,1736446236919,-500.0,0.0001994,2]
[348326388,1736446236929,-500.0,0.0001994,2]
[348326390,1736446236938,-225.0,0.0001994,2]
[348326392,1736446236948,-500.0,0.0001994,2]
[348326394,1736446236958,-500.0,0.0001994,2]
[348326396,1736446236967,-500.0,0.0001994,2]
[348326398,1736446236977,-500.0,0.0001994,2]
[348326400,1736446236988,-500.0,0.0001994,2]
[348326402,1736446236997,-500.0,0.0001994,2]
[348326404,1736446237006,-500.0,0.0001994,2]
[348326406,1736446237016,-500.0,0.0001994,2]
[348326408,1736446237026,-251.94156128,0.0001994,2]
[348326410,1736446237035,-500.0,0.0001994,2]
[348326426,1736446237142,-500.0,0.0001994,2]
[348326428,1736446237152,-500.0,0.0001994,2]
[348326430,1736446237162,-500.0,0.0001994,2]
[348326432,1736446237172,-500.0,0.0001994,2]
[348326434,1736446237181,-500.0,0.0001994,2]
[348326436,1736446237190,-500.0,0.0001994,2]
[348326438,1736446237200,-500.0,0.0001994,2]
[348326440,1736446237209,-500.0,0.0001994,2]
[348326442,1736446237220,-500.0,0.0001994,2]
[348326444,1736446237229,-500.0,0.0001994,2]
[348326446,1736446237239,-500.0,0.0001994,2]
[348326448,1736446237250,-500.0,0.0001994,2]
[348326450,1736446237259,-500.0,0.0001994,2]
[348326452,1736446237268,-250.0,0.0001994,2]
[348326454,1736446237278,-500.0,0.0001994,2]
[348326456,1736446237287,-500.0,0.0001994,2]
[348326458,1736446237297,-500.0,0.0001994,2]
[348326460,1736446237306,-500.0,0.0001994,2]
[348326461,1736446237315,-500.0,0.0001994,2]
[348326463,1736446237325,-488.24694559,0.0001994,2]
[348326466,1736446237336,-500.0,0.0001994,2]
[348326467,1736446237347,-650.0,0.0001994,2]
[348326469,1736446237358,-500.0,0.0001994,2]